fUSD/lending_fUSD_20260115
["ID","MTS","AMOUNT","RATE_DAILY","PERIOD"]
[402036724,1768488682323,-789.77,0.00041369,30]
[402036725,1768488682333,-2789.42,0.00041369,30]
[402036726,1768488682344,-500.0,0.00041369,30]
[402036727,1768488682354,-826.69,0.00041369,30]
[402036728,1768488682363,-1149.65,0.00041369,30]
[402036729,1768488682373,-500.0,0.00041369,30]
[402036730,1768488682382,-500.0,0.00041369,30]
[402036731,1768488682391,-500.0,0.00041369,30]
[402036732,1768488682401,-522.70175787,0.00041369,30]
[402036733,1768488682410,-1368.893506,0.00041369,120]
[402036734,1768488682420,-694.97,0.00041369,30]
[402036735,1768488682430,-500.0,0.00041369,30]
[402036736,1768488682439,-500.0,0.00041369,30]
[402036737,1768488682449,-5560.17,0.00041369,30]
[402036738,1768488682459,-1368.893506,0.00041369,120]
[402036739,1768488682469,-1451.55,0.00041369,30]
[402036740,1768488682479,-866.58,0.00041369,30]
[402036741,1768488682489,-1368.893506,0.00041369,120]
[402036742,1768488682499,-500.0,0.00041369,30]
[402036743,1768488682508,-500.0,0.00041369,30]
[402036744,1768488682518,-1368.893502,0.00041369,120]
[402036745,1768488682528,-500.0,0.00041369,30]
[402036746,1768488682540,-502.74,0.00041369,30]
[402036747,1768488682550,-500.0,0.00041369,30]
[402036748,1768488682559,-1120.83,0.00041369,30]
[402036749,1768488682569,-1802.52,0.00041369,30]
[402036750,1768488682578,-500.0,0.00041369,30]
[402036751,1768488682587,-545.1540605,0.00041369,30]
[402036752,1768488682598,-531.08,0.00041369,30]
[402036753,1768488682610,-1400.61,0.00041369,30]
[402036754,1768488682621,-1000.0,0.00041369,30]
[402036755,1768488682631,-500.0,0.00041369,30]
[402036756,1768488682640,-2718.45,0.00041369,30]
[402036757,1768488682650,-500.0,0.00041369,30]
[402036758,1768488682661,-500.0,0.00041369,30]
[402036759,1768488682670,-741.487047,0.00041369,120]
[402036760,1768488682679,-500.0,0.00041369,30]
[402036761,1768488682689,-1795.34,0.00041369,30]
[402036762,1768488682699,-741.487047,0.00041369,120]
[402036763,1768488682708,-455.04600169,0.00041369,30]
[402036764,1768488682718,-500.0,0.00041369,30]
[402036765,1768488682727,-1450.87,0.00041369,30]
[402036766,1768488682736,-500.0,0.00041369,30]
[402036767,1768488682745,-835.38,0.00041369,30]
[402036768,1768488682755,-1344.06,0.00041369,30]
[402036769,1768488682765,-500.0,0.00041369,30]
[402036770,1768488682774,-741.487047,0.00041369,120]
[402036771,1768488682783,-1177.91,0.00041369,30]
[402036772,1768488682792,-567.14,0.00041369,30]
[402036773,1768488682801,-602.38,0.00041369,30]
[402036774,1768488682810,-2242.4,0.00041369,30]
[402036775,1768488682819,-500.0,0.00041369,30]
[402036776,1768488682828,-692.93,0.00041369,30]
[402036777,1768488682837,-741.487042,0.00041369,120]
[402036778,1768488682847,-500.0,0.00041369,30]
[402036779,1768488682858,-500.0,0.00041369,30]
[402036780,1768488682868,-4029.16,0.00041369,30]
[402036781,1768488682878,-500.0,0.00041369,30]
[402036782,1768488682888,-549.02,0.00041369,30]
[402036783,1768488682898,-500.0,0.00041369,30]
[402036784,1768488682907,-674.28,0.00041369,30]
[402036785,1768488682917,-500.0,0.00041369,30]
[402036786,1768488682926,-500.0,0.00041369,30]
[402036787,1768488682947,-1157.4,0.00041369,30]
[402036788,1768488682957,-538.61,0.00041369,30]
[402036789,1768488682967,-500.0,0.00041369,30]
[402036790,1768488682977,-500.0,0.00041369,30]
[402036791,1768488682987,-513.64,0.00041369,30]
[402036792,1768488682997,-500.0,0.00041369,30]
[402036793,1768488683008,-500.0,0.00041369,30]
[402036794,1768488683018,-500.0,0.00041369,30]
[402036795,1768488683028,-500.0,0.00041369,30]
[402036796,1768488683039,-151.0,0.00041369,120]
[402036797,1768488683049,-500.0,0.00041369,30]
[402036798,1768488683059,-151.0,0.00041369,120]
[402036799,1768488683069,-268.836202,0.00041369,120]
[402036800,1768488683080,-500.0,0.00041369,30]
[402036801,1768488683090,-651.55,0.00041369,30]
[402036802,1768488683101,-2027.4,0.00041369,30]
[402036803,1768488683114,-268.836202,0.00041369,120]
[402036804,1768488683124,-500.0,0.00041369,30]
[402036805,1768488683135,-500.0,0.00041369,30]
[402036806,1768488683145,-268.836202,0.00041369,120]
[402036807,1768488683155,-500.0,0.00041369,120]
[402036808,1768488683166,-505.82,0.00041369,30]
[402036809,1768488683176,-268.836202,0.00041369,120]
[402036810,1768488683186,-1546.36,0.00041369,30]
[402036811,1768488683196,-500.0,0.00041369,30]
[402036812,1768488683206,-942.35,0.00041369,30]
[402036813,1768488683215,-675.33,0.00041369,30]
[402036814,1768488683226,-713.23,0.00041369,30]
[402036815,1768488683236,-578.01,0.00041369,30]
[402036816,1768488683246,-811.33,0.00041369,30]
[402036817,1768488683256,-500.0,0.00041369,14]
[402036818,1768488683266,-500.0,0.00041369,30]
[402036819,1768488683276,-1021.47,0.00041369,30]
[402036820,1768488683286,-679.88,0.00041369,30]
[402036821,1768488683296,-500.0,0.00041369,30]
[402036822,1768488683307,-381.01660002,0.00041369,30]
[402036823,1768488683318,-1723.27,0.00041369,30]
[402036824,1768488683329,-500.0,0.00041369,30]
[402036825,1768488683340,-517.91,0.00041369,30]
[402036826,1768488683351,-500.0,0.00041369,30]
[402036827,1768488683362,-547.56,0.00041369,30]
[402036828,1768488683373,-1014.52,0.00041369,30]
[402036829,1768488683383,-1431.97,0.00041369,14]
[402036830,1768488683394,-500.0,0.00041369,30]
[402036831,1768488683404,-954.61,0.00041369,30]
[402036832,1768488683414,-500.0,0.00041369,30]
[402036833,1768488683424,-548.9835335,0.00041369,30]
[402036834,1768488683434,-500.0,0.00041369,30]
[402036835,1768488683444,-749.64,0.00041369,30]
[402036836,1768488683454,-500.0,0.00041369,30]
[402036837,1768488683464,-500.0,0.00041369,30]
[402036838,1768488683474,-500.0,0.00041369,30]
[402036839,1768488683483,-725.61,0.00041369,30]
[402036840,1768488683498,-798.15,0.00041369,30]
[402036841,1768488683509,-961.74,0.00041369,30]
[402036842,1768488683519,-827.99,0.00041369,30]
[402036843,1768488683529,-1991.31,0.00041369,30]
[402036844,1768488683540,-656.43,0.00041369,30]
[402036845,1768488683550,-1740.58,0.00041369,30]
[402036846,1768488683560,-749.83,0.00041369,30]
[402036847,1768488683571,-820.49,0.00041369,30]
[402036848,1768488683580,-500.0,0.00041369,30]
[402036849,1768488683591,-676.62,0.00041369,30]
[402036850,1768488683601,-510.48,0.00041369,30]
[402036851,1768488683612,-500.0,0.00041369,30]
[402036852,1768488683625,-500.0,0.00041369,30]
[402036853,1768488683635,-300.0,0.00041369,2]
[402036854,1768488683646,-1204.64,0.00041369,30]
[402036855,1768488683657,-500.0,0.00041369,30]
[402036856,1768488683667,-164.50428599,0.00041369,30]
[402036857,1768488683677,-500.0,0.00041369,30]
[402036858,1768488683688,-2193.75,0.00041369,30]
[402036859,1768488683699,-500.0,0.00041369,30]
[402036860,1768488683710,-1772.99,0.00041369,30]
[402036861,1768488683720,-500.0,0.00041369,30]
[402036862,1768488683730,-500.0,0.00041369,30]
[402036863,1768488683739,-500.0,0.00041369,30]
[402036864,1768488683749,-500.0,0.00041369,30]
[402036865,1768488683759,-500.0,0.00041369,30]
[402036866,1768488683769,-2105.76,0.00041369,30]
[402036867,1768488683779,-990.25,0.00041369,30]
[402036868,1768488683789,-1540.86,0.00041369,30]
[402036869,1768488683799,-1198.5,0.00041369,30]
[402036870,1768488683809,-500.0,0.00041369,30]
[402036871,1768488683819,-500.0,0.00041369,30]
[402036872,1768488683829,-1134.69,0.00041369,30]
[402036873,1768488683841,-500.0,0.00041369,30]
[402036874,1768488683853,-500.0,0.00041369,30]
[402036875,1768488683864,-500.0,0.00041369,16]
[402036876,1768488683874,-500.0,0.00041369,30]
[402036877,1768488683884,-500.0,0.00041369,30]
[402036878,1768488683896,-500.0,0.00041369,30]
[402036879,1768488683906,-1134.25,0.00041369,30]
[402036880,1768488683921,-677.36,0.00041369,30]
[402036881,1768488683935,-1243.71,0.00041369,30]
[402036882,1768488683947,-622.75,0.00041369,30]
[402036883,1768488683958,-1093.73,0.00041369,30]
[402036884,1768488683967,-500.0,0.00041369,30]
[402036885,1768488683977,-500.0,0.00041369,30]
[402036886,1768488683987,-500.0,0.00041369,30]
[402036887,1768488683997,-500.0,0.00041369,30]
[402036888,1768488684007,-500.0,0.00041369,30]
[402036889,1768488684018,-500.0,0.00041369,30]
[402036890,1768488684028,-500.0,0.00041369,30]
[402036891,1768488684038,-500.0,0.00041369,30]
[402036892,1768488684048,-561.22,0.00041369,30]
[402036893,1768488684058,-500.0,0.00041369,30]
[402036894,1768488684068,-584.89,0.00041369,30]
[402036895,1768488684078,-1436.83,0.00041369,30]
[402036896,1768488684087,-1474.86,0.00041369,30]
[402036897,1768488684097,-1265.38,0.00041369,30]
[402036898,1768488684114,-500.0,0.00041369,30]
[402036899,1768488684126,-560.28,0.00041369,30]
[402036900,1768488684136,-500.0,0.00041369,30]
[402036901,1768488684146,-667.6,0.00041369,30]
[402036902,1768488684156,-500.0,0.00041369,30]
[402036903,1768488684166,-1528.84,0.00041369,30]
[402036904,1768488684175,-500.0,0.00041369,30]
[402036905,1768488684184,-500.0,0.00041369,30]
[402036906,1768488684194,-1224.17,0.00041369,30]
[402036907,1768488684203,-500.0,0.00041369,30]
[402036908,1768488684213,-805.58,0.00041369,30]
[402036909,1768488684355,-500.0,0.00041369,30]
[402036910,1768488684366,-1221.51,0.00041369,30]
[402036911,1768488684375,-647.62,0.00041369,30]
[402036912,1768488684384,-500.0,0.00041369,30]
[402036913,1768488684394,-500.0,0.00041369,30]
[402036914,1768488684403,-500.0,0.00041369,30]
[402036915,1768488684412,-500.0,0.00041369,30]
[402036916,1768488684421,-574.04,0.00041369,30]
[402036917,1768488684430,-500.0,0.00041369,30]
[402036918,1768488684439,-500.0,0.00041369,30]
[402036919,1768488684448,-500.0,0.00041369,30]
[402036920,1768488684457,-500.0,0.00041369,30]
[402036921,1768488684466,-1236.02,0.00041369,30]
[402036922,1768488684475,-500.0,0.00041369,30]
[402036923,1768488684484,-500.0,0.00041369,30]
[402036924,1768488684493,-500.0,0.00041369,30]
[402036925,1768488684502,-1291.13,0.00041369,30]
[402036926,1768488684511,-574.42298928,0.00041369,30]
[402036927,1768488684520,-500.0,0.00041369,30]
[402036928,1768488684529,-3310.92,0.00041369,30]
[402036929,1768488684538,-500.0,0.00041369,30]
[402036930,1768488684547,-500.0,0.00041369,10]
[402036931,1768488684556,-500.0,0.00041369,30]
[402036932,1768488684564,-500.0,0.00041369,30]
[402036933,1768488684573,-611.45,0.00041369,30]
[402036934,1768488684582,-500.0,0.00041369,30]
[402036935,1768488684591,-1275.06,0.00041369,30]
[402036936,1768488684600,-521.1975916,0.00041369,30]
[402036937,1768488684611,-500.0,0.00041369,30]
[402036938,1768488684622,-512.3880589,0.00041369,30]
[402036939,1768488684630,-500.0,0.00041369,30]
[402036940,1768488684640,-1003.4,0.00041369,30]
[402036941,1768488684651,-2763.15,0.00041369,30]
[402036942,1768488684661,-500.0,0.00041369,30]
[402036943,1768488684670,-500.0,0.00041369,30]
[402036944,1768488684679,-1536.58,0.00041369,30]
[402036945,1768488684688,-500.0,0.00041369,30]
[402036946,1768488684699,-1050.81,0.00041369,30]
[402036947,1768488684707,-954.23,0.00041369,30]
[402036948,1768488684716,-500.0,0.00041369,30]
[402036949,1768488684725,-500.0,0.00041369,30]
[402036950,1768488684734,-970.47,0.00041369,30]
[402036951,1768488684743,-500.0,0.00041369,30]
[402036952,1768488684752,-500.0,0.00041369,30]
[402036953,1768488684761,-964.9,0.00041369,30]
[402036954,1768488684771,-1993.6,0.00041369,30]
[402036955,1768488684780,-3489.66,0.00041369,30]
[402036956,1768488684789,-727.15,0.00041369,30]
[402036957,1768488684798,-500.0,0.00041369,5]
[402036958,1768488684807,-1004.2,0.00041369,30]
[402036959,1768488684816,-872.64,0.00041369,30]
[402036960,1768488684825,-542.82,0.00041369,30]
[402036961,1768488684835,-538.35,0.00041369,30]
[402036962,1768488684844,-500.0,0.00041369,30]
[402036963,1768488684855,-500.0,0.00041369,30]
[402036964,1768488684865,-500.0,0.00041369,30]
[402036965,1768488684874,-500.0,0.00041369,30]
[402036966,1768488684884,-500.0,0.00041369,30]
[402036967,1768488684893,-500.0,0.00041369,30]
[402036968,1768488684902,-500.0,0.00041369,30]
[402036969,1768488684913,-500.0,0.00041369,30]
[402036970,1768488684922,-500.0,0.00041369,30]
[402036971,1768488684931,-1603.77,0.00041369,30]
[402036972,1768488684940,-1367.37,0.00041369,30]
[402036973,1768488684949,-1601.76,0.00041369,30]
[402036974,1768488684959,-500.0,0.00041369,30]
[402036975,1768488684968,-1021.12,0.00041369,30]
[402036976,1768488684977,-4117.53,0.00041369,30]
[402036977,1768488684987,-2410.67,0.00041369,30]
[402036978,1768488684996,-515.04,0.00041369,30]
[402036979,1768488685006,-1029.31,0.00041369,30]
[402036980,1768488685023,-500.0,0.00041369,30]
[402036981,1768488685033,-500.0,0.00041369,30]
[402036982,1768488685042,-614.65,0.00041369,30]
[402036983,1768488685053,-500.0,0.00041369,30]
[402036984,1768488685062,-500.0,0.00041369,30]
[402036985,1768488685071,-500.0,0.00041369,30]
[402036986,1768488685080,-725.17,0.00041369,30]
[402036987,1768488685089,-3514.96,0.00041369,30]
[402036988,1768488685098,-500.0,0.00041369,30]
[402036989,1768488685109,-505.54,0.00041369,30]
[402036990,1768488685119,-500.0,0.00041369,30]
[402036991,1768488685128,-500.0,0.00041369,30]
[402036992,1768488685137,-500.0,0.00041369,30]
[402036993,1768488685147,-500.0,0.00041369,30]
[402036994,1768488685157,-1727.77,0.00041369,30]
[402036995,1768488685167,-626.49,0.00041369,120]
[402036996,1768488685178,-976.54,0.00041369,30]
[402036997,1768488685188,-500.0,0.00041369,2]
[402036998,1768488685199,-712.77,0.00041369,30]
[402036999,1768488685209,-819.43,0.00041369,30]
[402037000,1768488685218,-979.81,0.00041369,30]
[402037001,1768488685228,-504.39,0.00041369,30]
[402037002,1768488685237,-500.0,0.00041369,30]
[402037003,1768488685249,-500.0,0.00041369,30]
[402037004,1768488685259,-1181.82,0.00041369,30]
[402037005,1768488685269,-591.69005256,0.00041369,30]
[402037006,1768488685279,-500.0,0.00041369,30]
[402037007,1768488685293,-1335.08,0.00041369,30]
[402037008,1768488685303,-500.0,0.00041369,14]
[402037009,1768488685314,-500.0,0.00041369,30]
[402037010,1768488685324,-1051.23,0.00041369,30]
[402037011,1768488685333,-500.0,0.00041369,30]
[402037012,1768488685344,-938.93,0.00041369,30]
[402037013,1768488685354,-500.0,0.00041369,30]
[402037014,1768488685363,-541.93,0.00041369,30]
[402037015,1768488685373,-500.0,0.00041369,30]
[402037016,1768488685382,-1687.1,0.00041369,30]
[402037017,1768488685391,-500.0,0.00041369,30]
[402037018,1768488685401,-692.24,0.00041369,30]
[402037019,1768488685415,-1435.52,0.00041369,30]
[402037020,1768488685425,-514.29875151,0.00041369,30]
[402037021,1768488685435,-500.0,0.00041369,30]
[402037022,1768488685445,-1259.51,0.00041369,30]
[402037023,1768488685455,-500.0,0.00041369,30]
[402037024,1768488685466,-500.0,0.00041369,30]
[402037025,1768488685476,-2743.54,0.00041369,30]
[402037026,1768488685486,-667.41,0.00041369,30]
[402037027,1768488685496,-500.0,0.00041369,30]
[402037028,1768488685506,-1690.77,0.00041369,30]
[402037029,1768488685515,-500.0,0.00041369,30]
[402037030,1768488685525,-542.4,0.00041369,30]
[402037031,1768488685535,-763.99,0.00041369,30]
[402037032,1768488685545,-500.0,0.00041369,30]
[402037033,1768488685555,-500.0,0.00041369,30]
[402037034,1768488685564,-500.0,0.00041369,30]
[402037035,1768488685574,-500.0,0.00041369,30]
[402037036,1768488685583,-500.0,0.00041369,30]
[402037037,1768488685592,-834.95,0.00041369,30]
[402037038,1768488685604,-500.0,0.00041369,30]
[402037039,1768488685614,-500.0,0.00041369,30]
[402037040,1768488685629,-500.0,0.00041369,30]
[402037041,1768488685639,-500.0,0.00041369,30]
[402037042,1768488685648,-1129.89,0.00041369,30]
[402037043,1768488685658,-1906.6,0.00041369,30]
[402037044,1768488685668,-1079.02,0.00041369,30]
[402037045,1768488685678,-500.0,0.00041369,30]
[402037046,1768488685689,-500.0,0.00041369,30]
[402037047,1768488685699,-500.0,0.00041369,30]
[402037048,1768488685708,-500.0,0.00041369,30]
[402037049,1768488685718,-500.0,0.00041369,30]
[402037050,1768488685729,-1347.08,0.00041369,30]
[402037051,1768488685739,-500.0,0.00041369,30]
[402037052,1768488685750,-1579.79,0.00041369,30]
[402037053,1768488685760,-500.0,0.00041369,30]
[402037054,1768488685770,-300.0,0.00041369,2]
[402037055,1768488685780,-580.48,0.00041369,30]
[402037056,1768488685790,-500.0,0.00041369,30]
[402037057,1768488685800,-500.0,0.00041369,30]
[402037058,1768488685810,-500.0,0.00041369,30]
[402037059,1768488685820,-891.4,0.00041369,30]
[402037060,1768488685829,-683.3,0.00041369,30]
[402037061,1768488685839,-500.0,0.00041369,30]
[402037062,1768488685849,-500.0,0.00041369,30]
[402037063,1768488685861,-957.93,0.00041369,30]
[402037064,1768488685871,-1071.31,0.00041369,30]
[402037065,1768488685880,-811.4,0.00041369,30]
[402037066,1768488685890,-517.74522,0.00041369,30]
[402037067,1768488685900,-1733.3,0.00041369,30]
[402037068,1768488685910,-500.0,0.00041369,30]
[402037069,1768488685919,-1730.87,0.00041369,30]
[402037070,1768488685928,-1348.23,0.00041369,30]
[402037071,1768488685939,-1073.1,0.00041369,30]
[402037072,1768488685948,-585.42,0.00041369,30]
[402037073,1768488685957,-1030.96,0.00041369,30]
[402037074,1768488685967,-500.0,0.00041369,30]
[402037075,1768488685976,-535.68,0.00041369,30]
[402037076,1768488685985,-500.0,0.00041369,30]
[402037077,1768488685994,-638.86,0.00041369,30]
[402037078,1768488686003,-632.92,0.00041369,30]
[402037079,1768488686014,-500.0,0.00041369,30]
[402037080,1768488686023,-500.0,0.00041369,30]
[402037081,1768488686033,-500.0,0.00041369,30]
[402037082,1768488686042,-804.62,0.00041369,30]
[402037083,1768488686052,-504.81,0.00041369,30]
[402037084,1768488686062,-1106.51,0.00041369,30]
[402037085,1768488686073,-521.3,0.00041369,30]
[402037086,1768488686082,-500.0,0.00041369,30]
[402037087,1768488686091,-500.0,0.00041369,30]
[402037088,1768488686102,-2361.46,0.00041369,30]
[402037089,1768488686112,-500.0,0.00041369,30]
[402037090,1768488686121,-599.56,0.00041369,30]
[402037091,1768488686131,-500.0,0.00041369,30]
[402037092,1768488686141,-500.0,0.00041369,30]
[402037093,1768488686150,-940.09,0.00041369,30]
[402037094,1768488686160,-1372.94,0.00041369,30]
[402037095,1768488686171,-500.0,0.00041369,30]
[402037096,1768488686180,-514.92,0.00041369,30]
[402037097,1768488686190,-500.0,0.00041369,30]
[402037098,1768488686201,-989.28,0.00041369,30]
[402037099,1768488686211,-1862.32,0.00041369,30]
[402037100,1768488686220,-500.0,0.00041369,30]
[402037101,1768488686230,-3323.94,0.00041369,30]
[402037102,1768488686239,-666.99,0.00041369,30]
[402037103,1768488686248,-561.64,0.00041369,30]
[402037104,1768488686257,-500.0,0.00041369,30]
[402037105,1768488686267,-1018.11,0.00041369,30]
[402037106,1768488686276,-500.0,0.00041369,30]
[402037107,1768488686286,-1085.76,0.00041369,30]
[402037108,1768488686295,-282.906505,0.00041369,30]
[402037109,1768488686304,-1834.0,0.0004137,120]
[402037110,1768488686314,-592.0,0.0004137,2]
[402037111,1768488686324,-500.0,0.000414,120]
[402037112,1768488686334,-312.22245427,0.000414,15]
[402037113,1768488686343,-1834.0,0.00041425,120]
[402037114,1768488686355,-300.0,0.00041425,60]
[402037115,1768488686365,-592.0,0.00041425,2]
[402037116,1768488686375,-3582.31987,0.0004146,120]
[402037117,1768488686384,-1834.0,0.00041479,120]
[402037118,1768488686394,-592.0,0.0004148,2]
[402037119,1768488686403,-300.0,0.00041499,30]
[402037120,1768488686412,-300.0,0.00041499,30]
[402037121,1768488686422,-300.0,0.00041499,30]
[402037122,1768488686431,-271.61553299,0.00041499,30]
[402037123,1768488686441,-4232.23945641,0.000415,120]
[402037124,1768488686451,-151.0,0.000415,120]
[402037125,1768488686461,-197083.36908659,0.000415,120]
[402037126,1768488686471,-150.0,0.000415,120]
[402037127,1768488686482,-150.0,0.000415,120]
[402037128,1768488686493,-150.0,0.000415,120]
[402037129,1768488686503,-150.0,0.000415,120]
[402037130,1768488686513,-150.0,0.000415,120]
[402037131,1768488686523,-151.0,0.000415,60]
[402037132,1768488686533,-151.0,0.000415,120]
[402037133,1768488686543,-151.0,0.000415,120]
[402037134,1768488686552,-301.866508,0.000415,120]
[402037135,1768488686562,-168.309761,0.000415,120]
[402037136,1768488686572,-151.0,0.000415,120]
[402037137,1768488686582,-220.808598,0.000415,120]
[402037138,1768488686592,-220.808598,0.000415,120]
[402037139,1768488686602,-151.0,0.000415,120]
[402037140,1768488686614,-220.808598,0.000415,120]
[402037141,1768488686626,-220.808606,0.000415,120]
[402037142,1768488686637,-330.232261,0.000415,120]
[402037143,1768488686648,-151.0,0.000415,120]
[402037144,1768488686659,-330.232261,0.000415,120]
[402037145,1768488686669,-151.0,0.000415,120]
[402037146,1768488686678,-172.454076,0.000415,120]
[402037147,1768488686688,-330.232261,0.000415,120]
[402037148,1768488686701,-330.232252,0.000415,120]
[402037149,1768488686710,-151.0,0.000415,120]
[402037150,1768488686720,-151.0,0.000415,120]
[402037151,1768488686730,-151.0,0.000415,120]
[402037152,1768488686740,-183.944049,0.000415,15]
[402037153,1768488686750,-314.796391,0.000415,3]
[402037154,1768488686761,-183.944049,0.000415,15]
[402037155,1768488686771,-314.796391,0.000415,3]
[402037156,1768488686783,-183.944049,0.000415,15]
[402037157,1768488686793,-314.796391,0.000415,3]
[402037158,1768488686804,-183.944046,0.000415,15]
[402037159,1768488686814,-314.796395,0.000415,3]
[402037160,1768488686825,-151.0,0.000415,120]
[402037161,1768488686836,-151.0,0.000415,35]
[402037162,1768488686846,-151.0,0.000415,35]
[402037163,1768488686857,-151.0,0.000415,35]
[402037164,1768488686867,-151.0,0.00041534,120]
[402037165,1768488686876,-151.0,0.00041534,120]
[402037166,1768488686886,-151.0,0.00041534,120]
[402037167,1768488686896,-1834.0,0.00041534,120]
[402037168,1768488686906,-592.0,0.00041534,2]
[402037169,1768488686917,-179.17388048,0.00041543,120]
[402037170,1768488686926,-506.0,0.00041554,17]
[402037171,1768488686936,-3582.31987,0.0004156,120]
[402037172,1768488686946,-920.27062482,0.00041573,94]
[402037173,1768488686955,-1834.0,0.00041589,120]
[402037174,1768488686965,-592.0,0.00041589,2]
[402037175,1768488686975,-151.0,0.000416,120]
[402037176,1768488686984,-150.0,0.00041616,60]
[402037177,1768488686994,-150.0,0.00041616,2]
[402037178,1768488687004,-831.0,0.00041622,11]
[402037179,1768488687013,-18385.0,0.00041623,30]
[402037180,1768488687023,-300.0,0.00041642,30]
[402037181,1768488687032,-300.0,0.00041642,30]
[402037182,1768488687042,-11078.30003138,0.00041643,27]
[402037183,1768488687052,-1300.0,0.00041643,60]
[402037184,1768488687062,-2200.0,0.00041643,60]
[402037185,1768488687073,-208.739998,0.00041643,30]
[402037186,1768488687083,-247.184164,0.00041643,30]
[402037187,1768488687092,-150.978527,0.00041643,30]
[402037188,1768488687102,-528.41165494,0.00041643,30]
[402037189,1768488687114,-500.0,0.00041643,30]
[402037190,1768488687125,-500.0,0.00041643,30]
[402037191,1768488687135,-500.0,0.00041643,30]
[402037192,1768488687147,-894.22,0.00041643,30]
[402037193,1768488687157,-500.0,0.00041643,30]
[402037194,1768488687167,-500.0,0.00041643,30]
[402037195,1768488687178,-228.65,0.00041643,30]
[402037196,1768488687188,-749.93,0.00041643,30]
[402037197,1768488687198,-500.0,0.00041643,30]
[402037198,1768488687208,-500.0,0.00041643,30]
[402037199,1768488687218,-500.0,0.00041643,30]
[402037200,1768488687228,-970.08,0.00041643,30]
[402037201,1768488687238,-500.0,0.00041643,30]
[402037202,1768488687248,-1373.88,0.00041643,30]
[402037203,1768488687258,-500.0,0.00041643,30]
[402037204,1768488687268,-500.0,0.00041643,30]
[402037205,1768488687278,-500.0,0.00041643,30]
[402037206,1768488687288,-501.1454963,0.00041643,30]
[402037207,1768488687297,-500.0,0.00041643,30]
[402037208,1768488687307,-1671.33,0.00041643,30]
[402037209,1768488687316,-500.0,0.00041643,30]
[402037210,1768488687326,-643.11,0.00041643,30]
[402037211,1768488687336,-576.60756767,0.00041643,30]
[402037212,1768488687346,-1325.74,0.00041643,30]
[402037213,1768488687356,-500.0,0.00041643,30]
[402037214,1768488687366,-500.0,0.00041643,30]
[402037215,1768488687376,-539.86,0.00041643,30]
[402037216,1768488687386,-500.0,0.00041643,30]
[402037217,1768488687396,-533.46,0.00041643,30]
[402037218,1768488687406,-500.0,0.00041643,30]
[402037219,1768488687416,-1463.85,0.00041643,30]
[402037220,1768488687426,-825.4,0.00041643,30]
[402037221,1768488687435,-500.0,0.00041643,30]
[402037222,1768488687445,-500.0,0.00041643,30]
[402037223,1768488687456,-500.0,0.00041643,30]